bitfinex/quotes_BTCUSD_20250110
["timestamp","ask_amount","ask_price","bid_price","bid_amount"]
[1736526866011,0.08966426,93550.0,93548.0,0.023]
[1736526866216,0.0466,93557.0,93550.0,0.023]
[1736526866473,0.001,93555.0,93554.0,0.245779]
[1736526866659,0.0803,93587.0,93585.0,0.023]
[1736526866846,0.0803,93587.0,93586.0,0.34100676]
[1736526867627,0.16996426,93587.0,93586.0,0.023]
[1736526867826,0.16996426,93587.0,93586.0,0.236707]
[1736526868227,0.0803,93587.0,93586.0,0.34400676]
[1736526868455,0.08966426,93589.0,93588.0,0.213702]
[1736526868660,0.08966426,93589.0,93588.0,0.12729976]
[1736526869075,0.08966426,93601.0,93590.0,0.427396]
[1736526869292,0.08966426,93599.0,93592.0,0.023]
[1736526869496,0.08966426,93599.0,93598.0,0.213679]
[1736526869697,0.08966426,93599.0,93598.0,0.34097876]
[1736526869923,0.08966426,93599.0,93598.0,0.023]
[1736526870257,0.08966426,93589.0,93588.0,0.213701]
[1736526870440,0.08966426,93589.0,93588.0,0.34100076]
[1736526870699,8.51e-05,93614.0,93576.0,0.02132051]
[1736526870700,0.16736426,93582.0,93576.0,0.02132051]
[1736526870906,0.16736426,93582.0,93553.0,0.1]
[1736526870907,0.16736426,93582.0,93577.0,0.10429976]
[1736526871119,0.16736426,93582.0,93558.0,0.1]
[1736526871120,0.08966426,93576.0,93568.0,0.02163515]
[1736526871325,0.08966426,93573.0,93569.0,0.31804476]
[1736526871533,0.08966426,93573.0,93571.0,0.213741]
[1736526871749,0.0777,93582.0,93563.0,0.213759]
[1736526871750,0.08966426,93569.0,93563.0,0.213759]
[1736526871957,0.08966426,93564.0,93563.0,0.213759]
[1736526872157,0.08966426,93551.0,93547.0,0.213794]
[1736526872367,0.00014609,93573.0,93531.0,0.4210551]
[1736526872368,0.08966426,93532.0,93531.0,0.4210551]
[1736526872571,0.0753,93550.0,93538.0,0.01017328]
[1736526872816,0.0753,93550.0,93539.0,0.10429976]
[1736526873045,0.08966426,93558.0,93557.0,0.213773]
[1736526873251,0.08966426,93558.0,93557.0,0.34107276]
[1736526874697,0.08966426,93558.0,93544.0,0.02167523]
[1736526874698,0.08966426,93551.0,93544.0,0.02167523]
[1736526874898,0.08966426,93551.0,93549.0,0.21379]
[1736526875052,0.08966426,93551.0,93550.0,0.10429976]
[1736526876084,0.08966426,93551.0,93550.0,0.12729976]
[1736526876331,0.08966426,93547.0,93540.0,0.213811]
[1736526876466,0.08966426,93541.0,93539.0,0.007]
[1736526877295,0.08966426,93558.0,93557.0,0.002]
[1736526877498,0.08966426,93559.0,93558.0,0.023]
[1736526877695,0.08966426,93559.0,93558.0,0.12729976]
[1736526878219,0.08966426,93560.0,93559.0,0.213768]
[1736526878417,0.08966426,93560.0,93559.0,0.023]
[1736526878878,0.08966426,93553.0,93549.0,0.213791]
[1736526879090,0.08966426,93548.0,93543.0,0.02138938]
[1736526879289,0.08966426,93548.0,93544.0,0.10429976]
[1736526879491,0.08966426,93548.0,93547.0,0.236796]
[1736526879693,0.08966426,93548.0,93547.0,0.34109576]
[1736526879893,0.08966426,93548.0,93547.0,0.12729976]
[1736526880107,0.08966426,93541.0,93539.0,0.009]
[1736526880324,0.08966426,93540.0,93539.0,0.009]
[1736526880545,0.08966426,93540.0,93539.0,0.007]
[1736526880747,0.17146426,93540.0,93539.0,0.007]
[1736526881180,0.0818,93540.0,93539.0,0.007]
[1736526881403,0.17146426,93540.0,93539.0,0.007]
[1736526881646,0.17146426,93540.0,93539.0,0.009]
[1736526882358,0.17146426,93540.0,93537.0,0.023]
[1736526882583,0.0818,93540.0,93539.0,0.001]
[1736526882794,0.17146426,93540.0,93539.0,0.001]
[1736526883174,0.0782,93557.0,93550.0,0.213787]
[1736526883377,0.08966426,93555.0,93552.0,0.023]
[1736526883581,0.08966426,93555.0,93554.0,0.023]
[1736526883800,0.08966426,93555.0,93554.0,0.12729976]
[1736526884003,0.08966426,93550.0,93547.0,0.213795]
[1736526884227,0.08966426,93550.0,93549.0,0.213791]
[1736526884383,0.08966426,93546.0,93539.0,0.03161278]
[1736526884567,0.08966426,93546.0,93545.0,0.2138]
[1736526884796,0.08966426,93554.0,93549.0,0.21379]
[1736526884998,0.0782,93557.0,93552.0,0.023]
[1736526885205,0.0782,93557.0,93554.0,0.023]
[1736526885400,0.08966426,93555.0,93554.0,0.34107976]
[1736526885563,0.08966426,93555.0,93554.0,0.12729976]
[1736526885990,0.08966426,93551.0,93539.0,0.02253496]
[1736526886195,0.08966426,93551.0,93548.0,0.213793]
[1736526886395,0.08966426,93551.0,93549.0,0.12729976]
[1736526886616,0.08966426,93550.0,93539.0,0.213813]
[1736526886858,0.08966426,93545.0,93541.0,0.213809]
[1736526887057,0.08966426,93545.0,93542.0,0.12729976]
[1736526888019,0.08966426,93545.0,93529.0,1.71398131]
[1736526888020,0.08966426,93530.0,93529.0,0.00014631]
[1736526888223,0.08966426,93530.0,93529.0,0.10444607]
[1736526888401,0.08966426,93530.0,93529.0,0.12744607]
[1736526888750,0.08966426,93544.0,93538.0,0.213815]
[1736526888947,0.08966426,93544.0,93542.0,0.002]
[1736526889148,0.08966426,93543.0,93542.0,0.002]
[1736526889354,0.08966426,93531.0,93530.0,0.023]
[1736526889551,0.08966426,93531.0,93530.0,0.12729976]
[1736526890165,0.08966426,93531.0,93529.0,0.00114631]
[1736526890383,0.08966426,93530.0,93529.0,0.00114631]
[1736526890978,0.08966426,93530.0,93529.0,0.00014631]
[1736526891769,0.16686426,93530.0,93529.0,0.00014631]
[1736526892215,0.0772,93530.0,93529.0,0.00114631]
[1736526892423,0.0791,93543.0,93529.0,0.12844607]
[1736526892633,0.08966426,93535.0,93534.0,0.236825]
[1736526892822,0.08966426,93535.0,93534.0,0.34112476]
[1736526893026,0.08966426,93535.0,93534.0,0.12729976]
[1736526893142,0.08966426,93535.0,93529.0,0.00114631]
[1736526893143,0.08966426,93530.0,93529.0,0.00814631]
[1736526894179,0.08966426,93530.0,93529.0,0.00714631]
[1736526894368,0.08966426,93530.0,93529.0,0.00814631]
[1736526894619,0.08966426,93530.0,93529.0,0.22198331]
[1736526894817,0.08966426,93544.0,93530.0,0.023]
[1736526894986,0.08966426,93544.0,93543.0,0.023]
[1736526895190,0.08966426,93544.0,93543.0,0.12729976]
[1736526897082,0.08966426,93540.0,93539.0,0.213813]
[1736526897305,0.08966426,93540.0,93531.0,0.213831]
[1736526897508,0.260388,93551.0,93529.0,0.00114631]
[1736526897509,0.08966426,93530.0,93529.0,0.00114631]
[1736526898196,0.08966426,93530.0,93529.0,0.00014631]
[1736526898402,0.16596426,93534.0,93529.0,0.12744607]
[1736526898590,0.08966426,93530.0,93529.0,0.02314631]
[1736526898785,0.08966426,93530.0,93529.0,0.00014631]
[1736526899387,0.09066426,93530.0,93529.0,0.00014631]
[1736526899601,0.09066426,93530.0,93529.0,0.12744607]
[1736526899803,0.001,93530.0,93529.0,0.12744607]
[1736526900034,0.001,93530.0,93529.0,0.34128307]
[1736526900291,0.08966426,93543.0,93530.0,0.023]
[1736526900528,0.08966426,93543.0,93529.0,1.60644607]
[1736526900529,0.08966426,93546.0,93543.0,0.023]
[1736526900734,0.08966426,93546.0,93545.0,0.023]
[1736526900932,0.08966426,93546.0,93545.0,0.34109976]
[1736526901142,0.08966426,93539.0,93529.0,1.54087038]
[1736526901352,0.08966426,93536.0,93535.0,0.213823]
[1736526901566,0.08966426,93536.0,93535.0,0.31812276]
[1736526901997,0.08966426,93551.0,93536.0,0.023]
[1736526902226,0.08966426,93559.0,93554.0,0.023]
[1736526902399,0.0474,93567.0,93555.0,0.12729976]
[1736526902400,0.08966426,93556.0,93555.0,0.12729976]
[1736526902572,0.08966426,93556.0,93555.0,0.34107676]
[1736526902774,0.08966426,93556.0,93555.0,0.10429976]
[1736526903006,0.08966426,93544.0,93543.0,0.009]
[1736526903212,0.08966426,93544.0,93537.0,0.213818]
[1736526903402,0.08966426,93540.0,93539.0,0.023]
[1736526903643,0.08966426,93540.0,93539.0,0.12729976]
[1736526904167,0.08966426,93537.0,93536.0,0.003]
[1736526904372,0.08966426,93537.0,93536.0,0.10729976]
[1736526904779,0.08966426,93545.0,93537.0,0.023]
[1736526904984,0.08966426,93545.0,93544.0,0.236803]
[1736526905210,0.08966426,93548.0,93546.0,0.213798]
[1736526905418,0.08966426,93548.0,93547.0,0.10429976]
[1736526905630,0.08966426,93548.0,93543.0,0.216804]
[1736526905770,0.08966426,93544.0,93543.0,0.003]
[1736526905970,0.08966426,93549.0,93544.0,0.023]
[1736526906174,0.08966426,93549.0,93547.0,0.213796]
[1736526906403,0.0474,93567.0,93548.0,0.12729976]
[1736526906614,0.08966426,93580.0,93575.0,0.023]
[1736526906839,0.08966426,93580.0,93574.0,0.213733]
[1736526906840,0.08966426,93579.0,93578.0,0.023]
[1736526907074,0.08966426,93579.0,93578.0,0.12729976]
[1736526907283,0.08966426,93579.0,93578.0,0.34102476]
[1736526907709,0.0778,93594.0,93567.0,0.427499]
[1736526907710,0.08966426,93570.0,93567.0,0.427499]
[1736526907912,0.08966426,93570.0,93568.0,0.10429976]
[1736526908282,0.08966426,93572.0,93569.0,0.023]
[1736526908452,0.08966426,93572.0,93571.0,0.023]
[1736526908695,0.08966426,93572.0,93571.0,0.12729976]
[1736526908945,0.08966426,93572.0,93571.0,0.34104076]
[1736526909182,0.08966426,93572.0,93571.0,0.55478176]
[1736526909403,0.08966426,93572.0,93571.0,0.34104076]
[1736526909909,0.08966426,93572.0,93571.0,0.34304076]
[1736526910390,0.08966426,93572.0,93571.0,0.12729976]
[1736526910662,0.08966426,93572.0,93566.0,0.213752]
[1736526910663,0.08966426,93567.0,93566.0,0.213752]
[1736526910843,0.08966426,93557.0,93556.0,0.02143354]
[1736526911076,0.08966426,93557.0,93537.0,0.00106886]
[1736526911344,0.08966426,93557.0,93552.0,0.023]
[1736526911603,0.08966426,93557.0,93551.0,0.213787]
[1736526911604,0.08966426,93557.0,93554.0,0.023]
[1736526912997,0.08966426,93546.0,93539.0,0.213813]
[1736526913253,0.08966426,93541.0,93540.0,0.10429976]
[1736526913518,0.08966426,93541.0,93540.0,0.12729976]
[1736526913978,0.08966426,93541.0,93532.0,0.03158875]
[1736526913979,0.08966426,93528.0,93524.0,0.213848]
[1736526914206,0.0754,93539.0,93524.0,0.213848]
[1736526914207,0.08966426,93525.0,93524.0,0.213848]
[1736526914431,0.08966426,93525.0,93524.0,0.33973609]
[1736526914662,0.08966426,93525.0,93524.0,0.31814776]
[1736526915089,0.08966426,93530.0,93529.0,0.213837]
[1736526915300,0.08966426,93530.0,93529.0,0.31813676]
[1736526915546,0.08966426,93526.0,93525.0,0.213846]
[1736526915783,0.08966426,93520.0,93519.0,0.21386]
[1736526915996,0.08966426,93532.0,93519.0,0.10429976]
[1736526916195,0.08966426,93532.0,93530.0,0.023]
[1736526916401,0.0754,93539.0,93530.0,0.023]
[1736526916402,0.08966426,93531.0,93530.0,0.023]
[1736526916705,0.0491,93554.0,93530.0,0.023]
[1736526916706,0.08966426,93541.0,93540.0,0.236812]
[1736526916907,0.08966426,93541.0,93540.0,0.34111176]
[1736526917106,0.08966426,93541.0,93538.0,0.213816]
[1736526917349,0.213795,93548.0,93533.0,0.213828]
[1736526917350,0.08966426,93534.0,93533.0,0.213828]
[1736526917624,0.08966426,93545.0,93533.0,0.10429976]
[1736526917797,0.0806,93551.0,93530.0,0.001]
[1736526917798,0.08966426,93539.0,93538.0,0.236816]
[1736526918003,0.08966426,93539.0,93538.0,0.31811576]
[1736526918202,0.08966426,93539.0,93538.0,0.34111576]
[1736526919158,0.08966426,93539.0,93538.0,0.34211576]
[1736526919390,0.08966426,93539.0,93538.0,0.001]
[1736526919959,0.08966426,93530.0,93522.0,0.213853]
[1736526920195,0.08966426,93539.0,93538.0,0.001]
[1736526921355,0.08966426,93539.0,93538.0,0.12829976]
[1736526921606,0.0491,93554.0,93541.0,0.023]
[1736526921862,0.08966426,93542.0,93541.0,0.236809]
[1736526922099,0.08966426,93537.0,93535.0,0.213823]
[1736526922399,0.08966426,93539.0,93538.0,0.023]
[1736526922617,0.08966426,93539.0,93538.0,0.12729976]
[1736526922865,0.08966426,93539.0,93538.0,0.13429976]
[1736526923109,0.08966426,93539.0,93538.0,0.12729976]
[1736526923364,0.08966426,93535.0,93534.0,0.213825]
[1736526923661,0.08966426,93522.0,93519.0,0.21386]
[1736526923892,0.213816,93538.0,93524.0,0.213848]
[1736526924143,0.213816,93538.0,93530.0,0.213834]
[1736526924386,0.08966426,93528.0,93526.0,0.213843]
[1736526924638,0.213816,93538.0,93526.0,0.213843]
[1736526924639,0.08966426,93530.0,93528.0,0.213839]
[1736526924884,0.08966426,93529.0,93528.0,0.236839]
[1736526925127,0.08966426,93529.0,93528.0,0.34113876]
[1736526925634,0.08966426,93519.0,93517.0,0.2140332]
[1736526926382,0.0792,93525.0,93517.0,0.0001702]
[1736526926641,0.08966426,93529.0,93528.0,0.025]
[1736526926920,0.0803,93540.0,93539.0,0.236814]
[1736526926921,0.08966426,93540.0,93539.0,0.236814]
[1736526927166,0.08966426,93540.0,93539.0,0.34111376]
[1736526927945,0.08966426,93558.0,93557.0,0.023]
[1736526928195,0.0825,93567.0,93557.0,0.023]
[1736526928196,0.08966426,93563.0,93560.0,0.023]
[1736526928474,0.08966426,93566.0,93562.0,0.023]
[1736526928747,0.08966426,93573.0,93572.0,0.236739]
[1736526929018,0.08966426,93573.0,93572.0,0.34103876]
[1736526929571,0.08981035,93573.0,93572.0,0.34103876]
[1736526931545,0.08981035,93573.0,93572.0,0.222739]
[1736526931761,0.08981035,93573.0,93572.0,0.009]
[1736526932182,0.09345103,93573.0,93572.0,0.009]
[1736526932398,0.34345103,93573.0,93572.0,0.009]
[1736526932594,0.34345103,93573.0,93572.0,0.011]
[1736526933025,0.33981035,93573.0,93572.0,0.011]
[1736526933379,0.41591035,93573.0,93572.0,0.011]
[1736526933586,0.41591035,93573.0,93572.0,0.009]
[1736526933812,0.41948533,93573.0,93572.0,0.009]
[1736526934009,0.22982107,93573.0,93572.0,0.009]
[1736526934217,0.16591035,93573.0,93572.0,0.009]
[1736526934561,0.16591035,93573.0,93572.0,0.12729976]
[1736526934562,0.00014609,93573.0,93572.0,0.12729976]
[1736526934979,0.00114609,93573.0,93572.0,0.12836833]
[1736526935190,0.00014609,93573.0,93572.0,0.12836833]
[1736526935390,0.00014609,93573.0,93572.0,0.12729976]
[1736526935595,0.00014609,93573.0,93572.0,0.13329976]
[1736526935830,0.09081035,93573.0,93572.0,0.12729976]
[1736526936160,0.09081035,93573.0,93572.0,0.13629976]
[1736526936362,0.09081035,93573.0,93572.0,0.009]
[1736526936363,0.08981035,93573.0,93572.0,0.009]
[1736526936577,0.08966426,93569.0,93568.0,0.213748]
[1736526936789,0.08966426,93569.0,93568.0,0.31804776]
[1736526936987,0.08966426,93560.0,93559.0,0.213767]
[1736526937252,0.08966426,93560.0,93559.0,0.31806676]
[1736526937458,0.0816,93571.0,93556.0,0.213774]
[1736526937459,0.08966426,93557.0,93556.0,0.213774]
[1736526937660,0.08966426,93557.0,93556.0,0.34107376]
[1736526938628,0.08966426,93557.0,93556.0,0.35007376]
[1736526939622,0.00014609,93573.0,93565.0,0.023]
[1736526939826,0.00014609,93573.0,93571.0,0.023]
[1736526940026,0.00014609,93573.0,93572.0,0.34210731]
[1736526940229,0.00014609,93573.0,93572.0,0.49103876]
[1736526940431,0.00014609,93573.0,93572.0,0.57133876]
[1736526940754,0.00014609,93573.0,93572.0,2.07133876]
[1736526941421,0.08966426,93606.0,93592.0,0.236693]
[1736526941676,0.08966426,93606.0,93592.0,0.35071276]
[1736526941984,0.08966426,93602.0,93592.0,0.35071276]
[1736526942339,0.08966426,93598.0,93592.0,0.35071276]
[1736526942549,8.51e-05,93614.0,93592.0,0.35971276]
[1736526942550,0.08966426,93597.0,93592.0,0.35971276]
[1736526942979,0.08966426,93606.0,93592.0,0.37195321]
[1736526943772,0.08966426,93603.0,93592.0,0.38216054]
[1736526943970,8.51e-05,93614.0,93592.0,0.38216054]
[1736526943971,0.08974936,93593.0,93592.0,0.38716054]
[1736526944577,0.08974936,93593.0,93592.0,0.37623321]
[1736526944830,0.08974936,93593.0,93592.0,0.005]
[1736526945279,0.08974936,93593.0,93592.0,0.014]
[1736526945512,0.30344036,93593.0,93592.0,0.005]
[1736526945856,0.08966426,93578.0,93577.0,0.213726]
[1736526946040,0.08966426,93574.0,93573.0,0.213736]
[1736526946236,0.08966426,93577.0,93574.0,0.023]
[1736526946460,8.51e-05,93593.0,93584.0,0.023]
[1736526946461,0.08966426,93585.0,93584.0,0.023]
[1736526948320,0.08966426,93585.0,93583.0,0.213714]
[1736526948321,0.08966426,93586.0,93583.0,0.023]
[1736526948529,0.08974936,93593.0,93592.0,0.213693]
[1736526948735,0.08974936,93593.0,93592.0,0.34099276]
[1736526949715,8.51e-05,93593.0,93592.0,0.34999276]
[1736526950141,8.51e-05,93593.0,93592.0,0.37156705]
[1736526950520,8.51e-05,93593.0,93592.0,0.37356705]
[1736526950927,8.51e-05,93593.0,93592.0,0.36456705]
[1736526951182,8.51e-05,93593.0,93592.0,0.36256705]
[1736526951379,8.51e-05,93593.0,93592.0,0.37556705]
[1736526951580,8.51e-05,93593.0,93592.0,0.36656705]
[1736526951783,8.51e-05,93593.0,93592.0,0.34499276]
[1736526951784,0.08974936,93593.0,93592.0,0.34499276]
[1736526951984,0.08974936,93593.0,93592.0,0.35399276]
[1736526952158,0.08974936,93593.0,93592.0,0.34499276]
[1736526952567,0.08974936,93593.0,93592.0,0.35399276]
[1736526953183,0.08974936,93593.0,93592.0,0.013]
[1736526953381,0.08974936,93593.0,93592.0,0.009]
[1736526953786,0.08974936,93593.0,93592.0,0.013]
[1736526953983,0.08974936,93593.0,93592.0,0.14029976]
[1736526954158,8.51e-05,93593.0,93592.0,0.12729976]
[1736526954367,8.51e-05,93593.0,93592.0,0.12836813]
[1736526954730,8.51e-05,93593.0,93592.0,0.13936813]
[1736526954946,8.51e-05,93593.0,93592.0,0.13036813]
[1736526955352,8.51e-05,93593.0,93592.0,0.13936813]
[1736526955556,8.51e-05,93593.0,93592.0,0.12929976]
[1736526955760,8.51e-05,93593.0,93592.0,0.28036802]
[1736526955937,8.51e-05,93593.0,93592.0,0.28629976]
[1736526956145,8.51e-05,93593.0,93592.0,0.13029976]
[1736526956645,0.08974936,93593.0,93592.0,0.10429976]
[1736526956860,8.51e-05,93593.0,93592.0,0.10429976]
[1736526957055,8.51e-05,93593.0,93592.0,0.1323681]
[1736526957256,8.51e-05,93593.0,93592.0,0.13236806]
[1736526957636,8.51e-05,93593.0,93592.0,0.13736806]
[1736526958041,8.51e-05,93593.0,93592.0,0.12836806]
[1736526958239,8.51e-05,93593.0,93592.0,0.13736806]
[1736526958444,8.51e-05,93593.0,93592.0,0.14036806]
[1736526958638,8.51e-05,93593.0,93592.0,1.63136806]
[1736526958841,8.51e-05,93593.0,93592.0,1.63929976]
[1736526959346,8.51e-05,93614.0,93613.0,0.213645]
[1736526959551,8.51e-05,93614.0,93613.0,0.35066476]
[1736526959552,0.00057272,93614.0,93613.0,0.35066476]
[1736526959926,0.00057272,93614.0,93613.0,0.50066476]
[1736526960595,0.00057272,93614.0,93613.0,0.60066476]
[1736526960596,7.2e-07,93614.0,93613.0,0.60066476]
[1736526961022,7.2e-07,93614.0,93613.0,0.38032819]
[1736526961204,7.2e-07,93614.0,93613.0,0.38632819]
[1736526961436,7.2e-07,93614.0,93613.0,0.37832819]
[1736526961652,7.2e-07,93614.0,93613.0,0.38732819]
[1736526961864,7.2e-07,93614.0,93613.0,0.38132819]
[1736526962072,7.2e-07,93614.0,93613.0,0.37232819]
[1736526962279,7.2e-07,93614.0,93613.0,2.02232819]
[1736526962488,7.2e-07,93614.0,93613.0,2.03132819]
[1736526962694,7.2e-07,93614.0,93613.0,2.02232819]
[1736526963233,7.2e-07,93614.0,93613.0,2.02632819]
[1736526963683,7.2e-07,93614.0,93613.0,2.02232819]
[1736526964080,7.2e-07,93614.0,93613.0,2.02732819]
[1736526964667,7.2e-07,93614.0,93613.0,2.02232819]
[1736526965016,7.2e-07,93614.0,93613.0,0.38700819]
[1736526965233,7.2e-07,93614.0,93613.0,0.63700819]
[1736526965413,7.2e-07,93614.0,93613.0,2.13700819]
[1736526965651,7.2e-07,93614.0,93613.0,2.03700819]
[1736526966206,7.2e-07,93614.0,93613.0,0.37232819]
[1736526966415,7.2e-07,93614.0,93613.0,0.34932819]
[1736526966632,0.08966498,93614.0,93613.0,0.36400819]
[1736526966793,0.08966498,93614.0,93613.0,0.35432819]
[1736526967000,0.08966498,93614.0,93613.0,0.32800625]
[1736526967405,0.08966498,93614.0,93613.0,0.33100625]
[1736526967855,0.08966498,93614.0,93613.0,0.32800625]
[1736526968058,7.2e-07,93614.0,93613.0,0.35100625]
[1736526968369,7.2e-07,93614.0,93613.0,0.35400625]
[1736526968941,7.2e-07,93614.0,93613.0,1.85400625]
[1736526969563,7.2e-07,93614.0,93613.0,2.10100625]
[1736526969939,7.2e-07,93614.0,93613.0,2.10500625]
[1736526970142,7.2e-07,93615.0,93614.0,0.273]
[1736526970358,8.5e-07,93615.0,93614.0,0.37729976]
[1736526970557,8.51e-05,93627.0,93624.0,0.1]
[1736526970769,1e-07,93627.0,93626.0,0.59091476]
[1736526971168,1e-07,93627.0,93626.0,2.09091476]
[1736526972253,1e-07,93627.0,93626.0,2.01207687]
[1736526972460,1e-07,93627.0,93626.0,0.33907687]
[1736526972672,0.08966436,93627.0,93626.0,0.213615]
[1736526973770,0.08966436,93627.0,93626.0,0.006]
[1736526974185,0.08966426,93616.0,93615.0,0.21364]
[1736526974397,0.08966426,93616.0,93615.0,0.31793976]
[1736526974624,0.08966426,93622.0,93616.0,0.023]
[1736526974828,0.08966426,93622.0,93621.0,0.023]
[1736526975045,0.08966426,93622.0,93621.0,0.34092576]
[1736526975247,0.08966426,93609.0,93599.0,0.4210551]
[1736526975453,0.08966426,93604.0,93600.0,0.10429976]
[1736526975686,0.08966426,93604.0,93601.0,0.213672]
[1736526975863,0.17136426,93613.0,93605.0,0.236663]
[1736526976068,0.08966426,93623.0,93622.0,0.213622]
[1736526976276,0.08966426,93616.0,93615.0,0.003]
[1736526976720,0.08966426,93616.0,93607.0,0.213658]
[1736526976925,0.08966426,93616.0,93608.0,0.10429976]
[1736526977871,0.0751,93624.0,93610.0,0.023]
[1736526977872,0.08966426,93612.0,93610.0,0.023]
[1736526978096,0.08966426,93609.0,93608.0,0.023]
[1736526978525,0.08966426,93609.0,93608.0,0.236656]
[1736526979139,0.08966426,93609.0,93608.0,0.239656]
[1736526979370,0.13566426,93609.0,93608.0,0.003]
[1736526979573,0.36646426,93609.0,93608.0,0.003]
[1736526979777,0.36646426,93609.0,93599.0,0.00048762]
[1736526979778,0.30333926,93600.0,93599.0,0.00048762]
[1736526980197,0.40333926,93600.0,93599.0,0.00048762]
[1736526980413,0.63413926,93600.0,93599.0,0.00048762]
[1736526980629,0.53413926,93600.0,93599.0,0.00048762]
[1736526980840,0.08966426,93581.0,93580.0,0.02158615]
[1736526981045,0.17046426,93581.0,93580.0,0.00014613]
[1736526983420,0.17046426,93581.0,93580.0,0.00314613]
[1736526983771,0.17046426,93581.0,93580.0,0.00014613]
[1736526984369,0.17046426,93581.0,93580.0,0.12744589]
[1736526984370,0.08966426,93581.0,93580.0,0.12744589]
[1736526984591,0.08966426,93592.0,93591.0,0.213695]
[1736526984798,0.08966426,93595.0,93594.0,0.023]
[1736526984999,0.08966426,93595.0,93594.0,0.12729976]
[1736526985208,0.08966426,93595.0,93594.0,1.62729976]
[1736526985413,0.08966426,93588.0,93587.0,0.00968]
[1736526985645,0.08966426,93588.0,93569.0,0.02113768]
[1736526985646,0.08966426,93581.0,93569.0,0.02113768]
[1736526985851,0.16486426,93581.0,93569.0,0.02113768]
[1736526986059,0.16486426,93581.0,93561.0,0.0001704]
[1736526986263,0.0752,93581.0,93566.0,0.01016711]
[1736526986471,0.16486426,93581.0,93566.0,0.01016711]
[1736526987434,0.51916402,93581.0,93580.0,0.00114613]
[1736526988112,0.51916402,93581.0,93561.0,0.0001704]
[1736526988113,0.48209426,93576.0,93561.0,0.0001704]
[1736526988615,0.63209426,93576.0,93561.0,0.0001704]
[1736526988817,0.30342526,93562.0,93561.0,0.0001704]
[1736526989016,0.38272526,93562.0,93561.0,0.00031649]
[1736526989954,0.53272526,93562.0,93561.0,0.00031649]
[1736526990151,0.63272526,93562.0,93561.0,0.00031649]
[1736526990807,0.53272526,93562.0,93561.0,0.00031649]
[1736526991007,0.63272526,93562.0,93561.0,0.00031649]
[1736526991214,0.08966426,93536.0,93521.0,0.0001704]
[1736526991415,0.17176426,93536.0,93527.0,0.213839]
[1736526991614,0.38558526,93536.0,93521.0,0.0001704]
[1736526991832,0.38558526,93536.0,93521.0,0.2140244]
[1736526991833,0.43528526,93536.0,93521.0,0.2140244]
[1736526992238,0.43528526,93536.0,93521.0,0.0001704]
[1736526992846,0.78528526,93536.0,93535.0,0.0031704]
[1736526993044,0.55351726,93522.0,93521.0,0.0001704]
[1736526993258,0.73331726,93522.0,93521.0,0.00031671]
[1736526993609,0.63331726,93522.0,93521.0,0.00031671]
[1736526993741,0.73331726,93522.0,93521.0,0.00031671]
[1736526993941,0.88879632,93522.0,93521.0,0.00031671]
[1736526994142,0.69515276,93522.0,93521.0,0.00031671]
[1736526994329,0.08966426,93531.0,93522.0,0.023]
[1736526994540,0.08966426,93528.0,93525.0,0.213846]
[1736526994896,0.08966426,93528.0,93527.0,0.023]
[1736526995037,0.08966426,93528.0,93527.0,0.1491561]
[1736526995475,0.08966426,93528.0,93527.0,0.02185634]
[1736526995720,0.0784,93536.0,93521.0,0.00031671]
[1736526995721,0.08966426,93522.0,93521.0,0.00031671]
[1736526997233,0.09166426,93522.0,93521.0,0.00031671]
[1736526999151,0.08966426,93522.0,93521.0,0.00031671]
[1736526999592,0.09066426,93522.0,93521.0,0.00031671]
[1736527000091,0.66626402,93522.0,93521.0,0.00031671]
[1736527000250,0.66826402,93522.0,93521.0,0.00031671]
[1736527000663,0.66626402,93522.0,93521.0,0.00031671]
[1736527001072,0.66726402,93522.0,93521.0,0.00031671]
[1736527001488,0.56726402,93522.0,93521.0,0.00031671]
[1736527001727,0.36296426,93522.0,93521.0,0.00031671]
[1736527002329,0.36196426,93522.0,93521.0,0.00031671]
[1736527002732,0.66826402,93522.0,93521.0,0.00031671]
[1736527003221,0.66626402,93522.0,93521.0,0.00031671]
[1736527003596,0.66926402,93522.0,93521.0,0.00031671]
[1736527004027,0.2723,93522.0,93521.0,0.00031671]
[1736527004437,0.0763,93522.0,93521.0,0.00031671]
[1736527004646,0.0783,93522.0,93521.0,0.00031671]
[1736527004853,0.16796426,93522.0,93521.0,0.00031671]
[1736527005061,0.003,93522.0,93521.0,0.12761647]
[1736527005265,0.09166426,93522.0,93521.0,0.12761647]
[1736527005615,0.09166426,93522.0,93521.0,0.00231671]
[1736527005853,0.09166426,93522.0,93521.0,0.00031671]
[1736527006249,0.08966426,93522.0,93521.0,0.00031671]
[1736527006713,0.09066426,93522.0,93521.0,0.00031671]
[1736527007061,0.08966426,93522.0,93521.0,0.00031671]
[1736527007628,0.08966426,93522.0,93521.0,0.22417171]
[1736527008039,0.1,93544.0,93521.0,0.22417171]
[1736527008040,0.08966426,93534.0,93522.0,0.023]
[1736527008249,0.08966426,93539.0,93524.0,0.023]
[1736527008454,0.213719,93581.0,93521.0,0.00931671]
[1736527008455,0.213789,93551.0,93538.0,0.213816]
[1736527008665,0.08966426,93539.0,93538.0,0.213816]
[1736527009072,0.08966426,93539.0,93533.0,0.213828]
[1736527009073,0.08966426,93535.0,93533.0,0.213828]
[1736527009274,0.08966426,93535.0,93534.0,0.10429976]
[1736527009482,0.08966426,93535.0,93534.0,0.12729976]
[1736527010733,0.08966426,93534.0,93533.0,0.22413886]
[1736527010942,0.08966426,93546.0,93542.0,0.213807]
[1736527011148,0.0459,93571.0,93542.0,0.213807]
[1736527011149,0.1274,93571.0,93562.0,0.213759]
[1736527011353,0.08966426,93567.0,93563.0,0.023]
[1736527011561,8.52e-05,93574.0,93571.0,0.427481]
[1736527011769,8.52e-05,93574.0,93573.0,0.213736]
[1736527011972,0.08966426,93595.0,93573.0,0.12729976]
[1736527012198,0.08966426,93595.0,93572.0,0.00968]
[1736527012199,0.08966426,93593.0,93590.0,0.213697]
[1736527012412,0.08966426,93606.0,93593.0,0.213691]
[1736527012624,0.08966426,93595.0,93594.0,0.11397976]
[1736527012836,0.08966426,93595.0,93594.0,0.10429976]
[1736527013182,0.00014612,93604.0,93579.0,1.5]
[1736527013183,0.08966426,93591.0,93579.0,1.5]
[1736527013394,0.08966426,93591.0,93546.0,0.5457]
[1736527013395,0.08966426,93584.0,93581.0,0.213718]
[1736527013596,0.08966426,93584.0,93583.0,0.213714]
[1736527013798,0.08966426,93584.0,93583.0,0.31801376]
[1736527014357,0.08966426,93584.0,93583.0,0.10429976]
[1736527014566,0.08966426,93590.0,93589.0,0.2137]
[1736527014748,0.08966426,93602.0,93601.0,0.213672]